{"text_format":"1","workbook":"xlsx","n_sheets":10,"sheets":["Contractorfirma","KCD Werkverantwoordelijke","KCD Toegang KZ","KCD Toegang SPG","Opleiding NVC","deps-afd","Presets","KCD Onthaal","Formuleblad","keuzes"],"not_rendered":{"charts":0,"images":3,"macros":1,"external_links":0,"defined_names":20,"comments":0,"pivot_tables":0},"unopened":[],"bounds":{"document_bytes":16777216,"sheet_cells":100000,"rows_first":2000,"rows_last":500,"rows_between":2000,"halvings":0,"cell_chars":16384,"cell_head_chars":4096},"cells_cut":0,"cells_raw":0,"read":"whole","date_system":"1900"}

{"sheet":"Contractorfirma","index":0,"n_rows":39,"n_cols":20,"rows_kept":39,"cut":false,"hidden":false,"merged":[[1,21,3,25],[5,3,5,8],[6,3,6,8],[6,11,6,12],[7,3,7,8],[7,9,7,10],[7,11,7,12],[9,0,9,2],[9,3,9,8],[9,9,9,10],[9,11,9,12],[10,0,10,2],[10,3,10,8],[12,0,12,2],[12,3,12,8],[13,0,13,2],[13,3,13,8],[15,0,15,2],[15,7,15,8],[20,7,20,11],[20,12,20,14],[20,0,21,0],[20,1,21,1],[20,2,21,2],[20,3,21,3],[20,4,20,5],[20,6,21,6]]}
[null,null,null,null,null,null,null,null,null,null,null,null,null,null,null,null,null,null,null,0]
[null,null,"            Inlichtingen over werknemers tewerkgesteld in KCD"]
[]
["    KERNCENTRALE DOEL",null,null,null,null,null," \" AANMELDINGSFORMULIER 2024 \""]
[]
["Firmanaam"]
["Firma adres"]
["Contactpersoon firma",null,null,null,null,null,null,null,null,"Tel."]
[]
["Tewerkstellende dienst  KCD",null,null,null,null,null,null,null,null,"Tel. KCD"]
["Contactpersoon KCD"]
[]
["Omschrijving opdracht"]
["Nummer bestelling"]
[]
["Tewerkstellingsperiode",null,null,"van",null,null,"tot"]
[]
["Per werknemer dienen ALLE gele velden correct en VERPLICHT te worden ingevuld. Er mogen GEEN initialen noch afkortingen worden gebruikt."]
["Indien alle velden zijn ingevuld: stuur op naar 'onthaal.kcd@bnl.engie.com '"]
[]
[null,"Naam","Voornaam","Rijksregister-nummer","Geboorte -",null,"Nation.","Woonplaats",null,null,null,null,"Beschikt over veiligheidsmachtiging",null,null,"Gewerkt in Tihange?","Werken site?","Werken in technische installatie?","Werken in gecontroleerde zone?"]
[null,null,null,null,"datum","plaats",null,"straat","nr.","bus","postnr.","gemeente","J / N","aard","geldig tot","J/N","J/N","J/N","J/N"]
[1]
[2]
[3]
[4]
[5]
[6]
[7]
[8]
[9]
[10]
[11]
[12]
[13]
[14]
[15]
[]
["MAX 15 personen op 1 aanmeldingsformulier."]

{"sheet":"KCD Werkverantwoordelijke","index":1,"n_rows":73,"n_cols":23,"rows_kept":73,"cut":false,"hidden":true,"merged":[[4,9,4,15],[4,20,4,26],[4,33,4,39],[5,6,5,10],[5,11,5,15],[5,17,7,21],[5,22,7,31],[5,33,5,34],[5,35,5,39],[6,6,6,10],[17,0,17,4],[6,11,6,15],[6,33,6,34],[6,35,6,39],[7,6,7,10],[7,11,7,15],[9,5,9,19],[11,47,11,48],[11,50,11,51],[14,0,14,4],[15,0,15,4],[16,0,16,4],[29,0,29,4],[18,0,18,4],[19,0,19,4],[20,0,20,4],[21,0,21,4],[22,0,22,4],[23,0,23,4],[24,0,24,4],[25,0,25,4],[26,0,26,4],[27,0,27,4],[28,0,28,4],[41,0,41,4],[30,0,30,4],[31,0,31,4],[32,0,32,4],[33,0,33,4],[34,0,34,4],[35,0,35,4],[36,0,36,4],[37,0,37,4],[38,0,38,4],[39,0,39,4],[40,0,40,4],[53,0,53,4],[42,0,42,4],[43,0,43,4],[44,0,44,4],[45,0,45,4],[46,0,46,4],[47,0,47,4],[48,0,48,4],[49,0,49,4],[50,0,50,4],[51,0,51,4],[52,0,52,4],[65,0,65,4],[54,0,54,4],[55,0,55,4],[56,0,56,4],[57,0,57,4],[58,0,58,4],[59,0,59,4],[60,0,60,4],[61,0,61,4],[62,0,62,4],[63,0,63,4],[64,0,64,4],[72,0,72,4],[66,0,66,4],[67,0,67,4],[68,0,68,4],[69,0,69,4],[70,0,70,4],[71,0,71,4]]}
[]
[null,null,"            Toekenning toegangen door KCD werkverantwoordelijke"]
["    KERNCENTRALE DOEL"]
[]
[null,null,null,null,null,null,null,null,null,"Algemene gegevens:",null,null,null,null,null,null,null,null,null,null,"Inhoud van de werkzaamheden:"]
["Firmanaam:",null,null,{"$f":"Contractorfirma!D6","v":0},null,null,"Opdrachtgever KCD:",null,null,null,null,{"$f":"Contractorfirma!D11","v":0},null,null,null,null,null,"Omschrijving van de aard van de werken die deze firma uitvoert te KCD",null,null,null,null,{"$f":"Contractorfirma!D13","v":0}]
["Opgesteld door:",null,null,null,null,null,"Departement:"]
["Datum van ingave :",null,null,{"$f":"TODAY()","v":"2023-10-24"},null,null,"Afdeling:",null,null,null,null," "]
["Geelkleurige vakken invullen en waar nodig selectiekaders aanvinken"]
[null,null,null,null,null,"Werknemers"]
[null,null,null,null,"ID",1,2,3,4,5,6,7,8,9,10,11,12,13,14,15]
[null,null,null,null,"Naam",{"$f":"IF(Contractorfirma!B23=0,\"\",Contractorfirma!B23)","v":""},{"$f":"IF(Contractorfirma!B24=0,\"\",Contractorfirma!B24)","v":""},{"$f":"IF(Contractorfirma!B25=0,\"\",Contractorfirma!B25)","v":""},{"$f":"IF(Contractorfirma!B26=0,\"\",Contractorfirma!B26)","v":""},{"$f":"IF(Contractorfirma!B27=0,\"\",Contractorfirma!B27)","v":""},{"$f":"IF(Contractorfirma!B28=0,\"\",Contractorfirma!B28)","v":""},{"$f":"IF(Contractorfirma!B29=0,\"\",Contractorfirma!B29)","v":""},{"$f":"IF(Contractorfirma!B30=0,\"\",Contractorfirma!B30)","v":""},{"$f":"IF(Contractorfirma!B31=0,\"\",Contractorfirma!B31)","v":""},{"$f":"IF(Contractorfirma!B32=0,\"\",Contractorfirma!B32)","v":""},{"$f":"IF(Contractorfirma!B33=0,\"\",Contractorfirma!B33)","v":""},{"$f":"IF(Contractorfirma!B34=0,\"\",Contractorfirma!B34)","v":""},{"$f":"IF(Contractorfirma!B35=0,\"\",Contractorfirma!B35)","v":""},{"$f":"IF(Contractorfirma!B36=0,\"\",Contractorfirma!B36)","v":""},{"$f":"IF(Contractorfirma!B37=0,\"\",Contractorfirma!B37)","v":""}]
[null,null,null,null,"Voornaam",{"$f":"IF(Contractorfirma!C23=0,\"\",Contractorfirma!C23)","v":""},{"$f":"IF(Contractorfirma!C24=0,\"\",Contractorfirma!C24)","v":""},{"$f":"IF(Contractorfirma!C25=0,\"\",Contractorfirma!C25)","v":""},{"$f":"IF(Contractorfirma!C26=0,\"\",Contractorfirma!C26)","v":""},{"$f":"IF(Contractorfirma!C27=0,\"\",Contractorfirma!C27)","v":""},{"$f":"IF(Contractorfirma!C28=0,\"\",Contractorfirma!C28)","v":""},{"$f":"IF(Contractorfirma!C29=0,\"\",Contractorfirma!C29)","v":""},{"$f":"IF(Contractorfirma!C30=0,\"\",Contractorfirma!C30)","v":""},{"$f":"IF(Contractorfirma!C31=0,\"\",Contractorfirma!C31)","v":""},{"$f":"IF(Contractorfirma!C32=0,\"\",Contractorfirma!C32)","v":""},{"$f":"IF(Contractorfirma!C33=0,\"\",Contractorfirma!C33)","v":""},{"$f":"IF(Contractorfirma!C34=0,\"\",Contractorfirma!C34)","v":""},{"$f":"IF(Contractorfirma!C35=0,\"\",Contractorfirma!C35)","v":""},{"$f":"IF(Contractorfirma!C36=0,\"\",Contractorfirma!C36)","v":""},{"$f":"IF(Contractorfirma!C37=0,\"\",Contractorfirma!C37)","v":""}]
[]
["TYPE BADGE"]
["Permanente badge"]
["Niet permanente badge"]
["DOEL 12",null,null,null,null,0,0,0,0,0,0,0,0,0,0,0,0,0,0,0]
["TECHN. PER. (GEH/GMH/MAZ)"]
["TECHN. PERIMETER - BUITEN"]
["TECHN. PERIMETER (GNS)"]
["DGG GEBOUW - PERIMETER"]
["WARME ZONE - GNH"]
["WVG - WATERVANG"]
["GMH522 TT LOKAAL"]
["GMH632 TECHN. LOKAAL"]
["KONTROLEZAAL KANT MACHINEZAAL"]
["KONTROLEZAAL KANT LIFT"]
["DOEL 3",null,null,null,null,null,0,0,0,0,0,0,0,0,0,0,0,0,0,0]
["TECHN. PERIMETER (GVD/MAZ/GEH/GMH)"]
["TECHN. PERIMETER (BKR/OVG)"]
["WARME ZONE - GNH/RGB"]
["WARME ZONE - SPG"]
[" BKR743 KONTROLEZAAL"]
["GEH725 KONTROLEZAAL"]
["DOEL 4",null,null,null,null,null,null,null,0,0,0,0,0,0,0,0,0,0,0,0]
["TECHN. PERIMETER (GVD/MAZ/GEH/GMH)"]
["TECHN. PERIMETER (BKR/OVG)"]
["WARME ZONE - GNH/RGB"]
["WARME ZONE - SPG"]
[" BKR753 KONTROLEZAAL"]
["GEH726 KONTROLEZAAL"]
["TT & Computer lokalen"]
["ADG009 TT LOKAAL"]
["ADG032 TT LOKAAL & MAGAZIJN"]
["CGA119 TT LOKAAL"]
["CGA442 TECHN. LOKAAL"]
["CGB145 TT LOKAAL"]
["D3 GEH419 TT LOKAAL"]
["D3 GEH724 COMPUTER LOKAAL"]
["D4 GEH435A TT LOKAAL"]
["D4 GEH724 COMPUTER LOKAAL A"]
["MAH207 TT LOKAAL"]
["WPG007 TT LOKAAL"]
["WAB"]
["WAB TECHN. PERIMETER"]
["WAB WARME ZONE"]
["SCALDIS"]
["WERFSIMULATOR MNT"]
["SIMULATOR OPS"]
["KVR"]
["KVR"]
["SITE"]
["SITE-domein"]
["WVP",null,null,null,null,null,null,null,false]
["WVP D34"]
["Vervoersaanvragen"]
["Jaartoegang"]
["Tijdelijke toegang"]
["SF²-werf",null,null,null,null,null,0,0,0,0,0,0,0,0,0,0,0,0,0,0]
["Projectleider en/of werkleider"]
["Werken met en/of  raadplegen van wettelijk gecategoriseerde informatie of documenten"]
["Alle overige personeel"]

{"sheet":"KCD Toegang KZ","index":2,"n_rows":28,"n_cols":14,"rows_kept":28,"cut":false,"hidden":true,"merged":[[7,7,7,9],[11,5,11,6],[11,7,11,10],[11,11,11,12],[4,7,4,9],[4,28,4,34],[5,5,5,6],[5,7,5,9],[5,10,7,11],[5,12,7,13],[5,28,5,29],[5,30,5,34],[6,5,6,6],[6,7,6,9],[6,28,6,29],[6,30,6,34],[7,5,7,6]]}
[]
[null,null,"            Toekenning toegangen Kontrolezaal"]
["    KERNCENTRALE DOEL"]
[]
[]
["Firmanaam:",null,null,{"$f":"Contractorfirma!D6","v":0},null,"Opdrachtgever KCD:",null,{"$f":"Contractorfirma!D11","v":0},null,null,"Omschrijving van de aard van de werken die deze firma uitvoert te KCD",null,{"$f":"Contractorfirma!D13","v":0}]
[null,"Opgesteld door:",null,{"$f":"'KCD Werkverantwoordelijke'!D7","v":0},null,"Departement:"]
["Datum van ingave :",null,null,{"$f":"TODAY()","v":"2023-10-24"},null,"Afdeling:",null,{"$f":"'KCD Werkverantwoordelijke'!L8","v":" "}]
[]
[]
[]
[null,null,null,null,null,"Periode van tewerkstelling",null,"Controlezaal",null,null,null,"Controlezaal bunker"]
[null,"ID","Naam","Voornaam",null,"startdatum","einddatum","Doel 12 KANT MACHINEZAAL","Doel 12 KANT LIFT","Doel 3","Doel 4","Doel 3","Doel 4","Akkoord"]
[null,{"$f":"Contractorfirma!A23","v":1},{"$f":"Contractorfirma!B23","v":0},{"$f":"Contractorfirma!C23","v":0},null,{"$f":"Contractorfirma!F16","v":"00:00:00"},{"$f":"Contractorfirma!H16","v":"00:00:00"}]
[null,{"$f":"Contractorfirma!A24","v":2},{"$f":"Contractorfirma!B24","v":0},{"$f":"Contractorfirma!C24","v":0},null,{"$f":"F14","v":"00:00:00"},{"$f":"G14","v":"00:00:00"}]
[null,{"$f":"Contractorfirma!A25","v":3},{"$f":"Contractorfirma!B25","v":0},{"$f":"Contractorfirma!C25","v":0},null,{"$f":"F15","v":"00:00:00"},"00:00:00"]
[null,{"$f":"Contractorfirma!A26","v":4},{"$f":"Contractorfirma!B26","v":0},{"$f":"Contractorfirma!C26","v":0},null,"00:00:00","00:00:00"]
[null,{"$f":"Contractorfirma!A27","v":5},{"$f":"Contractorfirma!B27","v":0},{"$f":"Contractorfirma!C27","v":0},null,"00:00:00","00:00:00"]
[null,{"$f":"Contractorfirma!A28","v":6},{"$f":"Contractorfirma!B28","v":0},{"$f":"Contractorfirma!C28","v":0},null,"00:00:00","00:00:00"]
[null,{"$f":"Contractorfirma!A29","v":7},{"$f":"Contractorfirma!B29","v":0},{"$f":"Contractorfirma!C29","v":0},null,"00:00:00","00:00:00"]
[null,{"$f":"Contractorfirma!A30","v":8},{"$f":"Contractorfirma!B30","v":0},{"$f":"Contractorfirma!C30","v":0},null,"00:00:00","00:00:00"]
[null,{"$f":"Contractorfirma!A31","v":9},{"$f":"Contractorfirma!B31","v":0},{"$f":"Contractorfirma!C31","v":0},null,"00:00:00","00:00:00"]
[null,{"$f":"Contractorfirma!A32","v":10},{"$f":"Contractorfirma!B32","v":0},{"$f":"Contractorfirma!C32","v":0},null,"00:00:00","00:00:00"]
[null,{"$f":"Contractorfirma!A33","v":11},{"$f":"Contractorfirma!B33","v":0},{"$f":"Contractorfirma!C33","v":0},null,"00:00:00","00:00:00"]
[null,{"$f":"Contractorfirma!A34","v":12},{"$f":"Contractorfirma!B34","v":0},{"$f":"Contractorfirma!C34","v":0},null,"00:00:00","00:00:00"]
[null,{"$f":"Contractorfirma!A35","v":13},{"$f":"Contractorfirma!B35","v":0},{"$f":"Contractorfirma!C35","v":0},null,"00:00:00","00:00:00"]
[null,{"$f":"Contractorfirma!A36","v":14},{"$f":"Contractorfirma!B36","v":0},{"$f":"Contractorfirma!C36","v":0},null,"00:00:00","00:00:00"]
[null,{"$f":"Contractorfirma!A37","v":15},{"$f":"Contractorfirma!B37","v":0},{"$f":"Contractorfirma!C37","v":0},null,"00:00:00","00:00:00"]

{"sheet":"KCD Toegang SPG","index":3,"n_rows":28,"n_cols":11,"rows_kept":28,"cut":false,"hidden":true,"merged":[[11,5,11,6],[11,7,11,8],[4,7,4,8],[4,24,4,30],[5,5,5,6],[5,7,5,8],[5,9,7,9],[5,10,7,11],[5,24,5,25],[5,26,5,30],[6,5,6,6],[6,7,6,8],[6,24,6,25],[6,26,6,30],[7,5,7,6],[7,7,7,8]]}
[]
[null,null,"            Toekenning toegangen SPG"]
["    KERNCENTRALE DOEL"]
[]
[]
["Firmanaam:",null,null,{"$f":"Contractorfirma!D6","v":0},null,"Opdrachtgever KCD:",null,{"$f":"Contractorfirma!D11","v":0},null,"Omschrijving van de aard van de werken die deze firma uitvoert te KCD",{"$f":"Contractorfirma!D13","v":0}]
[null,"Opgesteld door:",null,{"$f":"'KCD Werkverantwoordelijke'!D7","v":0},null,"Departement:",null,{"$f":"'KCD Werkverantwoordelijke'!L7","v":0}]
["Datum van ingave :",null,null,{"$f":"TODAY()","v":"2023-10-24"},null,"Afdeling:",null,{"$f":"'KCD Werkverantwoordelijke'!L8","v":" "}]
[]
[]
[]
[null,null,null,null,null,"Periode van tewerkstelling",null,"SPG"]
[null,"ID","Naam","Voornaam",null,"startdatum","einddatum","Doel 3","Doel 4","Akkoord"]
[null,{"$f":"Contractorfirma!A23","v":1},{"$f":"Contractorfirma!B23","v":0},{"$f":"Contractorfirma!C23","v":0},null,{"$f":"Contractorfirma!F16","v":"00:00:00"},{"$f":"Contractorfirma!H16","v":"00:00:00"}]
[null,{"$f":"Contractorfirma!A24","v":2},{"$f":"Contractorfirma!B24","v":0},{"$f":"Contractorfirma!C24","v":0},null,{"$f":"F14","v":"00:00:00"},{"$f":"G14","v":"00:00:00"}]
[null,{"$f":"Contractorfirma!A25","v":3},{"$f":"Contractorfirma!B25","v":0},{"$f":"Contractorfirma!C25","v":0},null,{"$f":"F15","v":"00:00:00"},"00:00:00"]
[null,{"$f":"Contractorfirma!A26","v":4},{"$f":"Contractorfirma!B26","v":0},{"$f":"Contractorfirma!C26","v":0},null,"00:00:00","00:00:00"]
[null,{"$f":"Contractorfirma!A27","v":5},{"$f":"Contractorfirma!B27","v":0},{"$f":"Contractorfirma!C27","v":0},null,"00:00:00","00:00:00"]
[null,{"$f":"Contractorfirma!A28","v":6},{"$f":"Contractorfirma!B28","v":0},{"$f":"Contractorfirma!C28","v":0},null,"00:00:00","00:00:00"]
[null,{"$f":"Contractorfirma!A29","v":7},{"$f":"Contractorfirma!B29","v":0},{"$f":"Contractorfirma!C29","v":0},null,"00:00:00","00:00:00"]
[null,{"$f":"Contractorfirma!A30","v":8},{"$f":"Contractorfirma!B30","v":0},{"$f":"Contractorfirma!C30","v":0},null,"00:00:00","00:00:00"]
[null,{"$f":"Contractorfirma!A31","v":9},{"$f":"Contractorfirma!B31","v":0},{"$f":"Contractorfirma!C31","v":0},null,"00:00:00","00:00:00"]
[null,{"$f":"Contractorfirma!A32","v":10},{"$f":"Contractorfirma!B32","v":0},{"$f":"Contractorfirma!C32","v":0},null,"00:00:00","00:00:00"]
[null,{"$f":"Contractorfirma!A33","v":11},{"$f":"Contractorfirma!B33","v":0},{"$f":"Contractorfirma!C33","v":0},null,"00:00:00","00:00:00"]
[null,{"$f":"Contractorfirma!A34","v":12},{"$f":"Contractorfirma!B34","v":0},{"$f":"Contractorfirma!C34","v":0},null,"00:00:00","00:00:00"]
[null,{"$f":"Contractorfirma!A35","v":13},{"$f":"Contractorfirma!B35","v":0},{"$f":"Contractorfirma!C35","v":0},null,"00:00:00","00:00:00"]
[null,{"$f":"Contractorfirma!A36","v":14},{"$f":"Contractorfirma!B36","v":0},{"$f":"Contractorfirma!C36","v":0},null,"00:00:00","00:00:00"]
[null,{"$f":"Contractorfirma!A37","v":15},{"$f":"Contractorfirma!B37","v":0},{"$f":"Contractorfirma!C37","v":0},null,"00:00:00","00:00:00"]

{"sheet":"Opleiding NVC","index":4,"n_rows":30,"n_cols":12,"rows_kept":30,"cut":false,"hidden":true,"merged":[[11,6,11,7],[4,7,4,8],[4,27,4,33],[5,5,5,6],[5,7,5,8],[5,9,7,10],[5,11,7,12],[5,27,5,28],[5,29,5,33],[6,5,6,6],[6,7,6,8],[6,27,6,28],[6,29,6,33],[7,5,7,6],[7,7,7,8]]}
[]
[null,null,"           Opleiding Nucleaire Veiligheidscultuur"]
["    KERNCENTRALE DOEL"]
[]
[]
["Firmanaam:",null,null,{"$f":"Contractorfirma!D6","v":0},null,"Opdrachtgever KCD:",null,{"$f":"Contractorfirma!D11","v":0},null,"Omschrijving van de aard van de werken die deze firma uitvoert te KCD",null,{"$f":"Contractorfirma!D13","v":0}]
[null,"Opgesteld door:",null,{"$f":"'KCD Werkverantwoordelijke'!D7","v":0},null,"Departement:",null,{"$f":"'KCD Werkverantwoordelijke'!L7","v":0}]
["Datum van ingave :",null,null,{"$f":"TODAY()","v":"2023-10-24"},null,"Afdeling:",null,{"$f":"'KCD Werkverantwoordelijke'!L8","v":" "}]
[]
[]
[]
[null,null,null,null,null,null,"Periode van tewerkstelling"]
[null,"ID","Naam","Voornaam",null,"NVC","startdatum","einddatum"]
[null,{"$f":"Contractorfirma!A23","v":1},{"$f":"Contractorfirma!B23","v":0},{"$f":"Contractorfirma!C23","v":0},null,null,{"$f":"Contractorfirma!F16","v":"00:00:00"},{"$f":"Contractorfirma!H16","v":"00:00:00"}]
[null,{"$f":"Contractorfirma!A24","v":2},{"$f":"Contractorfirma!B24","v":0},{"$f":"Contractorfirma!C24","v":0},null,null,{"$f":"G14","v":"00:00:00"},{"$f":"H14","v":"00:00:00"}]
[null,{"$f":"Contractorfirma!A25","v":3},{"$f":"Contractorfirma!B25","v":0},{"$f":"Contractorfirma!C25","v":0},null,null,{"$f":"G15","v":"00:00:00"},"00:00:00"]
[null,{"$f":"Contractorfirma!A26","v":4},{"$f":"Contractorfirma!B26","v":0},{"$f":"Contractorfirma!C26","v":0},null,null,"00:00:00","00:00:00"]
[null,{"$f":"Contractorfirma!A27","v":5},{"$f":"Contractorfirma!B27","v":0},{"$f":"Contractorfirma!C27","v":0},null,null,"00:00:00","00:00:00"]
[null,{"$f":"Contractorfirma!A28","v":6},{"$f":"Contractorfirma!B28","v":0},{"$f":"Contractorfirma!C28","v":0},null,null,"00:00:00","00:00:00"]
[null,{"$f":"Contractorfirma!A29","v":7},{"$f":"Contractorfirma!B29","v":0},{"$f":"Contractorfirma!C29","v":0},null,null,"00:00:00","00:00:00"]
[null,{"$f":"Contractorfirma!A30","v":8},{"$f":"Contractorfirma!B30","v":0},{"$f":"Contractorfirma!C30","v":0},null,null,"00:00:00","00:00:00"]
[null,{"$f":"Contractorfirma!A31","v":9},{"$f":"Contractorfirma!B31","v":0},{"$f":"Contractorfirma!C31","v":0},null,null,"00:00:00","00:00:00"]
[null,{"$f":"Contractorfirma!A32","v":10},{"$f":"Contractorfirma!B32","v":0},{"$f":"Contractorfirma!C32","v":0},null,null,"00:00:00","00:00:00"]
[null,{"$f":"Contractorfirma!A33","v":11},{"$f":"Contractorfirma!B33","v":0},{"$f":"Contractorfirma!C33","v":0},null,null,"00:00:00","00:00:00"]
[null,{"$f":"Contractorfirma!A34","v":12},{"$f":"Contractorfirma!B34","v":0},{"$f":"Contractorfirma!C34","v":0},null,null,"00:00:00","00:00:00"]
[null,{"$f":"Contractorfirma!A35","v":13},{"$f":"Contractorfirma!B35","v":0},{"$f":"Contractorfirma!C35","v":0},null,null,"00:00:00","00:00:00"]
[null,{"$f":"Contractorfirma!A36","v":14},{"$f":"Contractorfirma!B36","v":0},{"$f":"Contractorfirma!C36","v":0},null,null,"00:00:00","00:00:00"]
[null,{"$f":"Contractorfirma!A37","v":15},{"$f":"Contractorfirma!B37","v":0},{"$f":"Contractorfirma!C37","v":0},null,null,"00:00:00","00:00:00"]
[]
[null,null,null,null,null,"zie SEC/11  10001488716"]

{"sheet":"deps-afd","index":5,"n_rows":47,"n_cols":4,"rows_kept":47,"cut":false,"hidden":true,"merged":[]}
["Departementen",null,"DEPARTEMENT","AFDELING"]
["CARE",null,"CARE","Nucl. Veiligheid / Noodplan"]
["CIM",null,"CARE","Health & Safety"]
["CORP",null,"CARE","Milieu"]
["ENG",null,"CARE","Stralingsbescherming"]
["FUEL",null,"CARE","Bewaking/Onthaal"]
["MNT",null,"CIM","Operating Experience (OE)"]
["OPS",null,"CIM","Human Performance (HP)"]
["Decommissioning",null,"CIM","Doc.Management (KCD)"]
[null,null,"CORP","HR"]
[null,null,"CORP","IT"]
[null,null,"CORP","Purchasing"]
[null,null,"CORP","Finance"]
[null,null,"CORP","CTM"]
[null,null,"CORP","Communicatie"]
[null,null,"ENG","Ontwerp en Nucl. Veiligheid"]
[null,null,"ENG","System Engineering"]
[null,null,"ENG","Program Engineering"]
[null,null,"ENG","Engineering Support"]
[null,null,"ENG","Projecten Elektrisch en I&C"]
[null,null,"ENG","Projecten Mechanisch"]
[null,null,"ENG","LTO Doel 1-2"]
[null,null,"FUEL","Assistance NFD"]
[null,null,"FUEL","Neutronica NFD"]
[null,null,"FUEL","Special Projects NFD"]
[null,null,"FUEL","Adjunct NFD"]
[null,null,"FUEL","Handling NFD"]
[null,null,"FUEL","Spent Fuel Doel"]
[null,null,"MNT","Draaiende Tuigen"]
[null,null,"MNT","Statische Tuigen"]
[null,null,"MNT","Maintenance I&C"]
[null,null,"MNT","Maintenance Elektrisch"]
[null,null,"MNT","Maintenance Technische Ondersteuning"]
[null,null,"MNT","Maintenance Coördinatie"]
[null,null,"MNT","Maintenance Support"]
[null,null,"MNT","Component Engineering"]
[null,null,"MNT","Multidisciplinaire Projecten"]
[null,null,"OPS","Bedrijfstechniek"]
[null,null,"OPS","Bedrijf Doel 12"]
[null,null,"OPS","Bedrijf Doel 34"]
[null,null,"OPS","Bedrijf WAB"]
[null,null,"OPS","Scheikunde"]
[null,null,"Decommissioning","Material & Waste Processing"]
[null,null,"Decommissioning","Material & Waste Facilities"]
[null,null,"Decommissioning","Program Support Decommissioning"]
[null,null,"Decommissioning","DSZ Doel 3"]
[null,null,"Decommissioning","Decommissioning KCD"]

{"sheet":"Presets","index":6,"n_rows":9,"n_cols":6,"rows_kept":9,"cut":false,"hidden":true,"merged":[]}
["Presets"]
[]
[null,null,null,"Naam","Voornaam","e-mail"]
["KZ verantwoordelijke Doel 12 (Afdelingshoofd)"]
["KZ verantwoordelijke Doel 12 (Adjunct Afdelingshoofd)"]
["KZ verantwoordelijke Doel 34",null,null,null,"Rik"]
["KZ verantwoordelijke Doel 12 (Adjunct Afdelingshoofd)"]
[]
["Onthaal",null,null,null,null,"onthaal.kcd@bnl.engie.com"]

{"sheet":"KCD Onthaal","index":7,"n_rows":0,"n_cols":0,"rows_kept":0,"cut":false,"hidden":true,"merged":[]}

{"sheet":"Formuleblad","index":8,"n_rows":40,"n_cols":18,"rows_kept":40,"cut":false,"hidden":true,"merged":[[0,2,0,3]]}
[null,"Verbergen",{"$f":"Contractorfirma!B23&\" \"&Contractorfirma!C23","v":" "},null,{"$f":"Contractorfirma!B24&\" \"&Contractorfirma!C24","v":" "},{"$f":"Contractorfirma!B25&\" \"&Contractorfirma!C25","v":" "},{"$f":"Contractorfirma!B26&\" \"&Contractorfirma!C26","v":" "},{"$f":"Contractorfirma!B27&\" \"&Contractorfirma!C27","v":" "},{"$f":"Contractorfirma!B28&\" \"&Contractorfirma!C28","v":" "},{"$f":"Contractorfirma!B29&\" \"&Contractorfirma!C29","v":" "},{"$f":"Contractorfirma!B30&\" \"&Contractorfirma!C30","v":" "},{"$f":"Contractorfirma!B31&\" \"&Contractorfirma!C31","v":" "},{"$f":"Contractorfirma!B32&\" \"&Contractorfirma!C32","v":" "},{"$f":"Contractorfirma!B33&\" \"&Contractorfirma!C33","v":" "},{"$f":"Contractorfirma!B34&\" \"&Contractorfirma!C34","v":" "},{"$f":"Contractorfirma!B35&\" \"&Contractorfirma!C35","v":" "},{"$f":"Contractorfirma!B36&\" \"&Contractorfirma!C36","v":" "},{"$f":"Contractorfirma!B37&\" \"&Contractorfirma!C37","v":" "}]
[null,null,{"$f":"Contractorfirma!A23","v":1},null,{"$f":"Contractorfirma!A24","v":2},{"$f":"Contractorfirma!A25","v":3},{"$f":"Contractorfirma!A26","v":4},{"$f":"Contractorfirma!A27","v":5},{"$f":"Contractorfirma!A28","v":6},{"$f":"Contractorfirma!A29","v":7},{"$f":"Contractorfirma!A30","v":8},{"$f":"Contractorfirma!A31","v":9},{"$f":"Contractorfirma!A32","v":10},{"$f":"Contractorfirma!A33","v":11},{"$f":"Contractorfirma!A34","v":12},{"$f":"Contractorfirma!A35","v":13},{"$f":"Contractorfirma!A36","v":14},{"$f":"Contractorfirma!A37","v":15}]
["TECHN. PER. (GEH/GMH/MAZ)","KZ verantwoordelijke Doel 12",false,{"$f":"IF(C3=TRUE,B3,\"\")","v":""}]
["TECHN. PERIMETER - BUITEN","Testpersoon 1",false,{"$f":"IF(C4=TRUE,B4,\"\")","v":""}]
["TECHN. PERIMETER (GNS)","Testpersoon 2",false,""]
["DGG GEBOUW - PERIMETER","Testpersoon 3",false,""]
["WARME ZONE - GNH","Testpersoon 4",false,""]
["WVG - WATERVANG","Testpersoon 5",false,""]
["GMH522 TT LOKAAL","Testpersoon 6",false,""]
["GMH632 TECHN. LOKAAL","Testpersoon 7",false,""]
["GEH604/608/624 KONTROLEZAAL","Testpersoon 8",false,""]
["TECHN. PERIMETER (GVD/MAZ/GEH/GMH)","Testpersoon 9",true,"Testpersoon 9"]
["TECHN. PERIMETER (BKR/OVG)","Testpersoon 10",false,""]
["WARME ZONE - GNH/RGB","Testpersoon 11",true,"Testpersoon 11"]
["WARME ZONE - SPG","Testpersoon 12",false,""]
[" BKR743 KONTROLEZAAL","Testpersoon 13",true,"Testpersoon 13"]
["GEH725 KONTROLEZAAL","Testpersoon 14",false,""]
["TECHN. PERIMETER (GVD/MAZ/GEH/GMH)","Testpersoon 15",true,"Testpersoon 15"]
["TECHN. PERIMETER (BKR/OVG)","Testpersoon 16",false,""]
["WARME ZONE - GNH/RGB","Testpersoon 17",true,"Testpersoon 17"]
["WARME ZONE - SPG","Testpersoon 18",false,""]
[" BKR753 KONTROLEZAAL","Testpersoon 19",false,""]
["GEH726 KONTROLEZAAL","Testpersoon 20",true,"Testpersoon 20"]
["ADG009 TT LOKAAL","Testpersoon 21",true,"Testpersoon 21"]
["ADG032 TT LOKAAL & MAGAZIJN","Testpersoon 22",false,""]
["CGA119 TT LOKAAL","Testpersoon 23",false,""]
["CGA442 TECHN. LOKAAL","Testpersoon 24",false,""]
["CGB145 TT LOKAAL","Testpersoon 25",false,""]
["D3 GEH419 TT LOKAAL","Testpersoon 26",false,""]
["D3 GEH724 COMPUTER LOKAAL","Testpersoon 27",false,""]
["D4 GEH435A TT LOKAAL","Testpersoon 28",false,""]
["D4 GEH724 COMPUTER LOKAAL A","Testpersoon 29",false,""]
["MAH207 TT LOKAAL","Testpersoon 30",false,""]
["WPG007 TT LOKAAL","Testpersoon 31",false,""]
["WAB TECHN. PERIMETER","Testpersoon 32",false,""]
["WAB WARME ZONE","Testpersoon 33",true,"Testpersoon 33"]
["KVR","Testpersoon 34",false,""]
["SITE - domein","Testpersoon 35",false,""]
["WVP D34","Testpersoon 36",false,""]
["WVP D34","Testpersoon 37",false,""]

{"sheet":"keuzes","index":9,"n_rows":6,"n_cols":4,"rows_kept":6,"cut":false,"hidden":true,"merged":[]}
["NVC nodig","yesNo","aard","Kzlijst"]
["Gecontroleerde Zone","JA","Vertrouwelijk","Doel 12"]
["Technische perimeter","NEE","Geheim","Doel 3"]
["Site technisch werk",null,"Zeer geheim","Doel 4"]
["Vrijstelling, geen technisch werk"]
["Vrijstelling, technisch werk van korte duur onder begeleiding"]